bitfinex-derivatives/quotes_ETHF0:USTF0_20250831
["timestamp","ask_amount","ask_price","bid_price","bid_amount"]
[1756607630976,0.5208,4451.3,4451.2,0.3056]
[1756607631174,0.5208,4451.3,4451.2,0.5]
[1756607634276,0.4082,4451.3,4450.4,1.60636032]
[1756607634475,0.2928,4451.2,4451.1,0.5]
[1756607643178,0.83378859,4451.2,4451.1,0.5]
[1756607644576,1.06078859,4451.2,4451.1,0.5]
[1756607646983,0.83378859,4451.2,4451.1,0.5]
[1756607647184,1.06078859,4451.2,4451.1,0.5]
[1756607661895,0.83378859,4451.2,4451.1,0.5]
[1756607662192,1.06078859,4451.2,4451.1,0.5]
[1756607668104,1.06078859,4451.2,4451.1,0.3056]
[1756607669401,1.06078859,4451.2,4451.1,0.4986]
[1756607676711,0.1124,4451.1,4450.0,2.01485735]
[1756607677010,3.5,4450.5,4450.4,0.193]
[1756607677213,4.26798859,4450.5,4450.4,0.193]
[1756607677407,4.26798859,4450.5,4450.4,0.4973]
[1756607682216,3.727,4450.5,4450.4,0.4973]
[1756607686418,3.727,4450.5,4449.4,3.2078]
[1756607686419,0.1128,4450.4,4449.5,0.3057]
[1756607686619,0.1128,4450.2,4449.6,0.3057]
[1756607686815,0.2932,4450.0,4449.9,0.5098]
[1756607687015,3.501,4450.0,4448.9,3.2078]
[1756607687215,0.227,4449.9,4449.0,0.3057]
[1756607687520,0.227,4449.9,4449.1,0.3057]
[1756607687714,0.227,4449.9,4449.1,0.53045]
[1756607687715,0.1128,4449.8,4449.1,0.53045]
[1756607687916,0.5202,4449.7,4449.6,0.5098]
[1756607697223,0.227,4449.7,4449.6,0.5098]
[1756607701428,0.3398,4449.7,4449.6,0.5098]
[1756607703534,0.227,4449.7,4449.6,0.5098]
[1756607705736,0.3398,4449.7,4449.6,0.5098]
[1756607705934,0.1128,4449.7,4449.6,0.5098]
[1756607707727,0.227,4449.9,4449.6,0.5098]
[1756607707921,0.1126,4449.9,4449.7,0.2849]
[1756607708123,3.2078,4450.0,4449.9,0.2849]
[1756607708328,3.2078,4450.0,4449.9,0.4782]
[1756607708530,3.2078,4450.0,4449.9,0.70291999]
[1756607708736,3.2078,4450.0,4449.9,0.4782]
[1756607710535,3.2078,4450.5,4450.4,0.1933]
[1756607710731,3.2078,4450.5,4450.4,0.4782]
[1756607712733,3.3204,4450.5,4450.4,0.4782]
[1756607712931,3.2078,4450.5,4450.4,0.4782]
[1756607713834,3.5005,4450.5,4450.4,0.4782]
[1756607723946,0.2927,4450.5,4450.4,0.4782]
[1756607736461,0.1127,4450.6,4450.5,0.4782]
[1756607737460,0.1127,4451.3,4451.0,0.1882]
[1756607737660,3.7255,4451.6,4451.5,0.4838]
[1756607737855,3.75548021,4451.6,4451.5,0.4838]
[1756607738158,3.3881,4452.1,4452.0,0.1882]
[1756607738355,4.04853294,4452.1,4452.0,0.4838]
[1756607739864,4.04853294,4452.1,4451.4,3.2078]
[1756607739865,4.04853294,4452.1,4451.8,0.2956]
[1756607740064,0.54773294,4452.0,4451.7,0.1882]
[1756607740251,3.2078,4452.1,4451.4,3.2078]
[1756607740252,3.2078,4452.1,4452.0,0.4838]
[1756607740451,3.3205,4452.1,4452.0,0.4838]
[1756607740661,3.5008,4452.1,4452.0,0.4838]
[1756607742162,4.04770314,4452.1,4452.0,0.4838]
[1756607742363,3.5008,4452.1,4452.0,0.4838]
[1756607742964,3.2078,4452.1,4452.0,0.4838]
[1756607743261,3.2078,4452.7,4452.1,0.2956]
[1756607743566,3.2078,4452.7,4452.6,0.4838]
[1756607743767,3.2078,4453.2,4452.7,0.2956]
[1756607743961,3.2078,4453.2,4453.1,0.4838]
[1756607744867,3.3205,4453.2,4453.1,0.4838]
[1756607745558,3.5008,4453.2,4453.1,0.4838]
[1756607749381,3.7278,4453.2,4453.1,0.4838]
[1756607749679,0.293,4452.1,4452.0,0.4838]
[1756607749980,3.5008,4452.1,4452.0,0.4838]
[1756607750173,3.2078,4452.1,4452.0,0.4838]
[1756607751072,3.2078,4452.6,4452.5,0.4838]
[1756607751270,3.5008,4452.6,4452.5,0.4838]
[1756607751472,0.1127,4452.5,4451.8,0.1]
[1756607751779,0.293,4452.0,4451.9,0.4838]
[1756607761785,0.52,4452.0,4451.9,0.4838]
[1756607762785,0.4073,4452.0,4451.9,0.4838]
[1756607763084,0.227,4452.0,4451.9,0.4838]
[1756607763682,0.52,4452.0,4451.9,0.4838]
[1756607763876,0.1803,4451.8,4451.7,0.2956]
[1756607764079,0.293,4451.8,4451.7,0.2956]
[1756607764285,0.293,4451.8,4451.7,0.4838]
[1756607764879,3.5008,4451.8,4451.7,0.4838]
[1756607765680,0.1803,4451.4,4451.3,0.2956]
[1756607765983,0.293,4451.0,4450.9,0.4838]
[1756607766579,0.1803,4451.0,4449.6,0.2956]
[1756607766785,3.2078,4450.8,4449.6,0.2956]
[1756607766985,0.091,4450.7,4449.6,0.2956]
[1756607767375,0.1127,4450.6,4450.5,0.1882]
[1756607767579,0.293,4450.6,4450.5,0.4784]
[1756607767781,0.1803,4450.6,4450.5,0.4784]
[1756607768282,0.091,4450.7,4450.5,0.4784]
[1756607768485,0.091,4450.7,4450.6,0.4833]
[1756607770386,0.3843,4450.7,4450.6,0.4833]
[1756607773089,0.2933,4450.7,4450.6,0.4833]
[1756607773387,0.227,4450.7,4450.6,0.4833]
[1756607776094,0.3398,4450.7,4450.6,0.4833]
[1756607776292,0.5203,4450.7,4450.6,0.4833]
[1756607786395,3.2078,4450.8,4450.7,0.4833]
[1756607786600,3.4348,4450.8,4450.7,0.4833]
[1756607788897,3.5466,4450.8,4450.7,0.4833]
[1756607789197,3.7254,4450.8,4450.7,0.4833]
[1756607793197,4.27153382,4450.8,4450.7,0.4833]
[1756607794100,3.7254,4450.8,4450.7,0.4833]
[1756607794300,4.27166505,4450.8,4450.7,0.4833]
[1756607798005,4.27166505,4450.8,4450.7,0.2902]
[1756607799801,4.15986505,4450.8,4449.6,0.3037]
[1756607800000,0.1126,4450.6,4449.7,0.3037]
[1756607800310,0.83896505,4450.5,4450.4,0.5029]
[1756607805708,3.2078,4450.8,4450.4,0.5029]
[1756607805913,3.2078,4450.8,4450.6,0.1992]
[1756607806109,0.3396,4451.2,4451.1,0.1992]
[1756607806413,1.06674352,4451.2,4451.1,0.5029]
[1756607807812,0.83974352,4451.2,4451.1,0.5029]
[1756607808108,0.2927,4451.2,4451.1,0.5029]
[1756607811017,3.4348,4451.3,4451.2,0.5029]
[1756607811206,3.98134901,4451.3,4451.2,0.5029]
[1756607811413,4.27404901,4451.3,4451.2,0.5029]
[1756607812517,3.7275,4451.3,4451.2,0.5029]
[1756607813616,3.2078,4451.3,4451.2,0.5029]
[1756607813817,3.5005,4451.3,4451.2,0.5029]
[1756607819934,3.5005,4451.3,4451.2,0.3037]
[1756607820330,0.1126,4451.2,4450.6,0.3037]
[1756607820530,0.1801,4450.8,4450.7,0.22467]
[1756607820725,0.2927,4450.8,4450.7,0.5029]
[1756607821032,0.4071,4450.8,4450.1,0.3037]
[1756607821243,0.2927,4450.2,4450.1,0.5029]
[1756607822934,0.2927,4450.2,4450.1,0.3037]
[1756607827240,0.2927,4450.2,4450.1,0.5029]
[1756607828639,0.2927,4450.2,4450.1,0.3037]
[1756607832033,0.2927,4450.2,4450.1,0.4978]
[1756607834439,3.5472,4450.4,4450.2,0.2992]
[1756607834744,3.7271,4450.4,4450.3,0.1941]
[1756607834944,3.7271,4450.4,4450.3,0.4933]
[1756607835841,0.1124,4450.3,4449.4,0.2992]
[1756607836046,0.2923,4450.3,4450.2,0.4933]
[1756607844244,0.1799,4450.3,4449.3,3.2078]
[1756607844444,0.227,4450.2,4449.4,0.2992]
[1756607844648,0.1801,4449.5,4449.4,0.4933]
[1756607844853,0.2927,4449.5,4449.4,0.4933]
[1756607851660,0.1801,4449.5,4449.4,0.4933]
[1756607851856,0.2927,4449.5,4449.4,0.4933]
[1756607853262,0.1801,4449.5,4449.4,0.4933]
[1756607853463,3.2078,4449.8,4449.6,0.1941]
[1756607853663,3.2078,4449.8,4449.7,0.4933]
[1756607853967,3.2078,4450.3,4450.2,0.4933]
[1756607854562,3.2078,4450.8,4450.2,0.71801]
[1756607854867,3.2078,4450.8,4450.7,0.1941]
[1756607855063,0.1126,4451.3,4450.7,0.4933]
[1756607855263,0.8353503,4451.2,4450.8,0.2992]
[1756607855470,0.5461503,4451.1,4451.0,0.1941]
[1756607855670,0.5461503,4451.1,4451.0,0.4933]
[1756607855870,3.2078,4451.4,4451.0,0.1941]
[1756607855871,0.227,4451.3,4451.0,0.1941]
[1756607856170,0.227,4451.3,4451.2,0.4933]
[1756607861968,0.703,4451.3,4451.2,0.4933]
[1756607865577,0.4153,4451.3,4451.2,0.4933]
[1756607865977,3.2078,4451.4,4451.3,0.4828]
[1756607867678,3.4955,4451.4,4451.3,0.4828]
[1756607868378,3.6838,4451.4,4451.3,0.4828]
[1756607870781,0.2877,4451.3,4450.4,0.2861]
[1756607871082,0.476,4451.3,4451.2,0.1967]
[1756607871282,0.476,4451.3,4451.2,0.4828]
[1756607872183,0.476,4451.2,4451.1,0.1967]
[1756607872483,0.476,4451.2,4451.1,0.4828]
[1756607873683,0.2877,4451.1,4450.4,0.2861]
[1756607873886,0.1883,4450.6,4450.5,0.4828]
[1756607874083,0.476,4450.6,4450.5,0.70748]
[1756607874490,0.2877,4451.2,4450.6,0.2861]
[1756607874681,0.2877,4451.2,4450.7,0.2861]
[1756607874882,0.227,4451.3,4450.7,0.22467]
[1756607875082,0.476,4450.9,4450.8,0.4828]
[1756607889298,0.2016,4450.5,4450.4,0.4666]
[1756607889498,0.5055,4450.5,4450.4,0.4666]
[1756607916416,3.2078,4451.4,4450.4,0.5946]
[1756607916621,0.2016,4450.7,4450.6,0.4666]
[1756607916817,0.5055,4450.7,4450.6,0.4666]
[1756607932030,0.4845,4451.3,4451.2,0.199]
[1756607932337,3.2078,4451.9,4451.8,0.4796]
[1756607932525,3.4976,4452.6,4452.5,0.199]
[1756607932724,4.04839482,4452.6,4452.5,0.199]
[1756607932924,4.04839482,4452.6,4452.5,0.4796]
[1756607933125,3.2078,4452.6,4452.5,0.4796]
[1756607933526,0.2898,4453.0,4452.5,0.4796]
[1756607933725,0.4845,4453.2,4453.1,0.199]
[1756607933925,1.03441837,4453.2,4453.1,0.4796]
[1756607934126,0.4845,4453.2,4453.1,0.4796]
[1756607942646,0.4845,4453.7,4453.6,0.4796]
[1756607943845,3.2078,4453.9,4453.2,0.40415]
[1756607943846,3.4976,4453.9,4453.8,0.4796]
[1756607944646,3.6923,4453.9,4453.8,0.4796]
[1756607946944,3.2078,4454.4,4454.3,0.4796]
[1756607947134,3.2078,4455.1,4454.9,0.4796]
[1756607947336,3.4976,4455.1,4454.9,0.199]
[1756607947546,3.4976,4455.1,4455.0,0.482]
[1756607947747,3.6836,4455.1,4455.0,0.2891]
[1756607948142,3.6836,4455.1,4455.0,0.482]
[1756607953549,3.6836,4455.1,4455.0,0.2891]
[1756607954554,3.6836,4455.1,4455.0,0.482]
[1756607955248,0.2954,4455.0,4454.2,0.2891]
[1756607955446,0.186,4454.4,4454.3,0.41738]
[1756607955644,0.4814,4454.4,4454.3,0.482]
[1756607955850,3.2078,4455.1,4454.3,0.482]
[1756607956151,0.2954,4455.0,4454.4,0.2891]
[1756607956352,0.186,4454.5,4454.4,0.482]
[1756607956548,0.4814,4454.5,4454.4,0.482]
[1756607960855,0.2954,4455.0,4454.5,0.2891]
[1756607961058,0.2954,4455.0,4453.8,3.4338]
[1756607961059,0.4814,4455.0,4454.9,0.482]
[1756607961258,3.4338,4455.1,4453.9,0.2891]
[1756607961259,0.2954,4454.9,4453.9,0.2891]
[1756607965862,0.4814,4454.9,4454.8,0.482]
[1756607968162,0.2954,4454.8,4454.0,0.4211]
[1756607968364,0.4814,4454.1,4454.0,0.3249]
[1756607968559,0.51989,4455.0,4454.0,0.3249]
[1756607968758,0.2954,4454.8,4454.1,0.2891]
[1756607970065,0.186,4454.2,4454.1,0.482]
[1756607970465,0.4814,4454.2,4454.1,0.482]
[1756607971961,0.4814,4454.2,4454.0,0.132]
[1756607971962,0.2954,4454.6,4454.5,0.1929]
[1756607972156,0.2954,4454.6,4454.5,0.482]
[1756607972362,0.4814,4454.6,4454.5,0.482]
[1756607973668,1.03095326,4454.6,4454.5,0.482]
[1756607985276,0.4814,4454.6,4454.5,0.482]
[1756607991682,0.2862,4454.5,4454.0,0.2936]
[1756607991884,0.189,4454.1,4454.0,0.4944]
[1756607992083,0.4752,4454.1,4454.0,0.7189]
[1756607992484,0.2862,4455.0,4454.1,0.2936]
[1756607992784,0.2862,4454.8,4454.1,0.2936]
[1756607992979,0.4752,4454.6,4454.5,0.2008]
[1756607993179,0.4752,4454.6,4454.5,0.4944]
[1756607998396,3.3968,4455.1,4455.0,0.2008]
[1756607998693,3.94747683,4455.1,4455.0,0.4944]
[1756607998896,4.23367683,4455.1,4455.0,0.4944]
[1756608001301,6.85812083,4455.1,4455.0,0.4944]
[1756608003293,0.189,4453.8,4453.5,0.2936]
[1756608003593,3.2078,4454.2,4453.5,0.4944]
[1756608003792,0.74496036,4454.1,4454.0,0.4944]
[1756608004198,0.55596036,4454.1,4454.0,0.4944]
[1756608004501,3.2078,4454.2,4454.1,0.4944]
[1756608004700,3.76357311,4454.2,4454.1,0.4944]
[1756608004997,4.23877311,4454.2,4454.1,0.4944]
[1756608005589,3.683,4454.2,4454.1,0.4944]
[1756608005993,4.23862613,4454.2,4454.1,0.4944]
[1756608006395,3.683,4454.2,4454.1,0.4944]
[1756608007396,3.3968,4454.2,4454.1,0.4944]
[1756608007792,0.2867,4454.4,4454.1,0.4944]
[1756608008094,0.4853,4454.4,4454.3,0.4778]
[1756608008498,0.2867,4454.7,4454.3,0.1872]
[1756608008695,0.4853,4455.1,4455.0,0.1872]
[1756608008898,0.4853,4455.1,4455.0,0.4778]
[1756608009092,1.04080268,4455.1,4455.0,0.4778]
[1756608010800,3.66524668,4455.1,4455.0,0.4778]
[1756608014209,3.109744,4455.1,4455.0,0.4778]
[1756608015808,3.109744,4455.1,4455.0,0.2906]
[1756608016009,0.2867,4455.0,4454.4,0.2906]
[1756608016209,0.1986,4454.6,4454.5,0.4778]
[1756608016409,0.4853,4454.6,4454.5,0.70228]
[1756608016611,0.4853,4454.6,4454.3,3.2078]
[1756608016816,0.4853,4454.5,4454.4,0.2906]
[1756608017015,0.4853,4454.5,4454.4,0.4778]
[1756608019423,2.624444,4455.1,4454.5,0.2906]
[1756608019717,2.624444,4455.1,4454.3,3.2078]
[1756608019718,0.4853,4455.0,4454.9,0.4778]
[1756608020326,3.109744,4455.0,4454.9,0.4778]
[1756608021630,0.4853,4454.5,4454.4,0.4778]
[1756608024227,0.4853,4454.4,4454.3,0.4778]
[1756608026826,0.4853,4454.7,4454.6,0.1872]
[1756608027130,0.4853,4454.7,4454.6,0.4778]
[1756608033832,0.1986,4454.7,4454.6,0.4778]
[1756608034028,3.4338,4455.3,4454.7,0.2906]
[1756608034230,0.4853,4454.8,4454.7,0.4778]
[1756608034437,0.2867,4455.1,4455.0,0.1872]
[1756608034729,0.2867,4455.1,4455.0,0.4778]
[1756608034930,1.03307255,4455.1,4455.0,0.4778]
[1756608036330,3.65751655,4455.1,4455.0,0.4778]
[1756608037238,3.65751655,4455.1,4454.0,0.226]
[1756608037439,0.1896,4454.3,4454.2,0.4871]
[1756608037641,0.4941,4454.3,4454.2,0.4871]
[1756608038237,0.1896,4454.3,4454.2,0.4871]
[1756608039936,0.4941,4454.3,4454.2,0.4871]
[1756608040134,0.1896,4454.3,4454.2,0.4871]
[1756608040335,2.814044,4454.3,4454.2,0.4871]
[1756608041539,3.118544,4454.3,4454.2,0.7131]
[1756608043737,3.118544,4454.3,4454.2,0.4871]
[1756608047848,3.118544,4454.3,4454.2,0.7131]
[1756608056349,3.118544,4454.3,4454.2,0.226]
[1756608063656,3.118544,4454.3,4453.9,0.2846]
[1756608063857,3.118544,4454.3,4454.0,0.226]
[1756608065458,3.118544,4454.3,4454.0,0.5106]
[1756608065658,0.1896,4454.1,4454.0,0.5106]
[1756608065859,0.4941,4454.1,4454.0,0.7131]
[1756608070262,3.118544,4454.1,4454.0,0.7131]
[1756608072170,2.814044,4454.1,4454.0,0.7131]
[1756608073967,3.107844,4454.1,4454.0,0.7131]
[1756608078671,0.4858,4453.7,4453.6,5.5589]
[1756608078874,0.4858,4453.7,4453.6,0.63842]
[1756608079169,0.4858,4453.7,4453.6,0.4776]
[1756608079374,0.4858,4453.7,4453.3,2.01485735]
[1756608079575,0.4858,4453.7,4453.6,0.226]
[1756608082076,0.4858,4453.7,4453.4,0.2897]
[1756608082271,0.2938,4453.6,4453.5,0.2897]
[1756608082477,3.110244,4453.6,4453.5,0.2897]
[1756608084781,0.4858,4453.1,4453.0,0.226]
[1756608084981,0.4858,4453.1,4453.0,0.7036]
[1756608085281,0.192,4453.6,4453.5,0.4776]
[1756608085474,0.192,4453.6,4453.5,0.2897]
[1756608085673,0.192,4453.1,4453.0,0.1879]
[1756608085874,0.4858,4453.1,4453.0,0.7036]
[1756608086475,3.110244,4453.1,4453.0,0.7036]
[1756608090781,3.110244,4453.1,4453.0,0.226]
[1756608092679,3.110244,4453.1,4452.8,3.2078]
[1756608092980,0.2938,4452.8,4452.3,3.2078]
[1756608093182,2.624444,4453.1,4452.3,3.4975]
[1756608093183,0.4858,4452.4,4452.3,3.4975]
[1756608093379,0.4858,4452.4,4452.3,3.4338]
[1756608093982,0.4858,4452.4,4452.3,3.2078]
[1756608094185,0.4858,4452.4,4452.3,3.4338]
[1756608094387,0.4858,4452.4,4452.3,3.2078]
[1756608094682,0.4858,4452.4,4452.3,3.4338]
[1756608095282,0.4858,4452.4,4452.3,3.9114]
[1756608096582,0.4858,4452.4,4452.3,3.2078]
[1756608096884,0.4858,4452.4,4452.3,3.7235]
[1756608097081,0.4858,4452.4,4452.3,3.9114]
[1756608097276,0.192,4452.4,4451.8,3.4975]
[1756608097479,0.192,4452.4,4451.4,2.01485735]
[1756608097480,0.1997,4451.5,4451.3,3.2078]
[1756608097677,0.5063,4451.4,4451.3,3.2078]
[1756608097879,0.5063,4451.4,4451.3,3.4338]
[1756608098279,0.5063,4451.8,4451.7,0.192]
[1756608098479,0.5063,4451.8,4451.7,0.4705]
[1756608098685,0.5063,4451.8,4451.7,0.6965]
[1756608100286,3.130744,4451.8,4451.7,0.6965]
[1756608101083,3.130744,4451.8,4451.7,0.226]
[1756608101788,3.130744,4451.8,4451.6,0.226]
[1756608102289,3.130744,4451.8,4451.4,0.2785]
[1756608102489,3.130744,4451.8,4451.6,0.226]
[1756608103185,3.130744,4451.8,4451.4,0.2785]
[1756608103490,0.5063,4451.6,4451.5,0.5045]
[1756608103688,0.5063,4451.6,4451.5,0.6965]
[1756608105385,3.130744,4451.6,4451.5,0.6965]
[1756608105986,3.130744,4451.6,4451.5,0.4705]
[1756608106191,3.130744,4451.6,4451.5,0.6965]
[1756608107992,2.624444,4451.6,4451.5,4.92114]
[1756608108296,0.5063,4452.6,4451.5,4.45064]
[1756608108492,0.3066,4452.5,4452.2,3.2078]
[1756608108696,0.3066,4452.9,4452.3,0.226]
[1756608111599,0.5063,4452.7,4452.3,0.226]
[1756608113597,0.1997,4452.7,4451.7,5.371]
[1756608113796,2.624444,4452.8,4451.7,5.371]
[1756608113797,0.5063,4451.8,4451.7,5.371]
[1756608114002,0.5063,4451.8,4451.7,5.597]
[1756608115204,3.130744,4451.8,4451.7,5.597]
[1756608116105,3.130744,4451.8,4451.7,5.371]
[1756608116302,3.130744,4451.8,4451.7,5.597]
[1756608117106,3.130744,4451.8,4451.7,5.371]
[1756608118302,2.931044,4451.8,4451.7,5.371]
[1756608118705,3.130744,4451.8,4451.7,5.371]
[1756608119109,3.130744,4451.8,4451.7,5.597]
[1756608120504,3.130744,4451.8,4451.7,0.226]
[1756608124914,0.1997,4451.1,4451.0,5.371]
[1756608125117,0.5063,4451.1,4451.0,5.597]
[1756608125424,3.130744,4451.1,4451.0,5.597]
[1756608128712,3.130744,4451.1,4451.0,5.371]
[1756608128918,3.130744,4451.1,4451.0,5.597]
[1756608130214,2.624444,4451.1,4451.0,9.5979]
[1756608131720,2.624444,4451.1,4451.0,11.61275735]
[1756608131918,2.624444,4451.1,4451.0,9.5979]
[1756608132520,2.624444,4451.1,4451.0,11.61275735]
[1756608134328,2.624444,4451.1,4451.0,9.5979]
[1756608134521,2.624444,4451.1,4451.0,11.61275735]
[1756608135221,2.624444,4451.1,4451.0,9.5979]
[1756608135421,2.918344,4451.1,4451.0,7.38675735]
[1756608135622,3.120044,4451.1,4451.0,5.5979]
[1756608137136,3.120044,4451.1,4451.0,5.77625]
[1756608137331,3.120044,4451.1,4451.0,6.00225]
[1756608139534,2.918344,4451.1,4451.0,6.00225]
[1756608139840,2.918344,4451.1,4451.0,5.5979]
[1756608141641,2.624444,4451.1,4451.0,5.5979]
[1756608141941,2.918344,4451.1,4451.0,5.5979]
[1756608142342,2.624444,4451.1,4451.0,7.61275735]
[1756608143441,2.624444,4451.1,4451.0,5.5979]
[1756608146040,2.918344,4451.1,4451.0,5.5979]
[1756608146247,3.120044,4451.1,4451.0,5.3719]
[1756608146448,3.120044,4451.1,4451.0,5.597]
[1756608152847,3.120044,4451.1,4451.0,5.371]
[1756608153054,3.120044,4451.1,4451.0,5.597]
[1756608159051,3.120044,4451.1,4451.0,0.226]
[1756608161558,0.4951,4451.0,4450.9,8.5788]
[1756608161761,0.4951,4451.0,4450.9,8.8048]
[1756608162754,0.4951,4451.0,4450.9,8.5788]
[1756608162960,0.4951,4451.0,4450.9,8.8048]
[1756608164962,0.4951,4451.0,4450.9,3.4338]
[1756608165361,3.119544,4451.0,4450.9,3.4338]
[1756608166358,3.119544,4451.0,4450.9,3.2078]
[1756608166560,3.119544,4451.0,4450.9,3.4338]
[1756608171271,2.624444,4451.0,4450.9,3.4338]
[1756608173864,2.915844,4451.0,4450.9,3.4338]
[1756608176771,2.915844,4451.0,4450.9,8.8048]
[1756608178676,2.915844,4451.0,4450.9,8.5788]
[1756608178870,2.915844,4451.0,4450.9,8.8048]
[1756608179070,3.119544,4451.0,4450.9,8.8048]
[1756608181679,3.119544,4451.0,4450.9,8.5788]
[1756608181878,3.119544,4451.0,4450.9,8.8048]
[1756608182080,3.119544,4451.0,4450.9,3.4338]
[1756608185681,3.119544,4451.0,4450.9,3.2078]
[1756608185984,3.119544,4451.0,4450.9,3.4338]
[1756608189581,3.344214,4451.0,4450.9,3.4338]
[1756608189888,3.119544,4451.0,4450.9,3.4338]
[1756608192591,3.119544,4451.0,4450.9,0.226]
[1756608193180,3.119544,4451.0,4450.4,3.2078]
[1756608193386,0.4831,4450.5,4450.4,3.2078]
[1756608193586,0.4831,4450.5,4450.4,3.4338]
[1756608195487,3.107544,4450.5,4450.4,3.4338]
[1756608201191,2.624444,4450.5,4450.4,3.4338]
[1756608201688,2.905944,4450.5,4450.4,3.4338]
[1756608202494,3.107544,4450.5,4450.4,3.2078]
[1756608202690,3.107544,4450.5,4450.4,3.4338]
[1756608205100,3.107544,4450.5,4450.4,0.226]
[1756608208299,0.4831,4450.0,4449.9,3.2078]
[1756608208498,0.4831,4450.0,4449.9,8.8048]
[1756608208899,0.4831,4450.0,4449.9,8.5788]
[1756608209101,0.4831,4450.0,4449.9,8.8048]
[1756608209500,0.4831,4450.0,4449.9,8.5788]
[1756608209700,0.4831,4450.0,4449.9,8.8048]
[1756608210301,3.107544,4450.0,4449.9,8.8048]
[1756608212505,3.107544,4450.0,4449.9,3.4338]
[1756608214706,2.624444,4450.0,4449.9,3.4338]
[1756608218311,2.624444,4450.0,4449.9,8.8048]
[1756608220608,2.926644,4450.0,4449.9,8.8048]
[1756608221016,2.624444,4450.0,4449.9,8.8048]
[1756608222713,2.926644,4450.0,4449.9,8.8048]
[1756608226629,3.112044,4450.0,4449.9,8.8048]
[1756608230218,3.112044,4450.0,4449.9,3.4338]
[1756608231325,0.4876,4449.5,4449.4,3.2078]
[1756608231525,0.4876,4449.5,4449.4,3.4338]
[1756608235227,3.112044,4449.5,4449.4,3.4338]
[1756608245329,3.112044,4449.5,4449.4,3.2078]
[1756608245632,3.112044,4449.5,4449.4,3.4338]
[1756608265455,3.112044,4449.5,4449.4,0.226]
[1756608271863,0.2883,4449.4,4448.9,3.2078]
[1756608272062,0.482,4449.0,4448.9,3.2078]
[1756608272264,0.482,4449.0,4448.9,3.4338]
[1756608275065,0.482,4449.0,4448.9,3.2078]
[1756608275267,3.106444,4449.0,4448.9,3.4338]
[1756608275967,3.106444,4449.0,4448.9,3.2078]
[1756608276168,3.106444,4449.0,4448.9,3.4338]
[1756608298783,3.106444,4449.0,4448.9,3.2078]
[1756608298990,2.624444,4449.0,4448.9,0.226]
[1756608299189,2.816544,4449.0,4448.9,0.226]
[1756608299584,3.101544,4449.0,4448.9,0.226]
[1756608300785,2.909444,4449.0,4448.9,0.226]
[1756608300982,2.624444,4449.0,4448.9,8.06311]
[1756608301483,2.29564499,4449.0,4448.9,8.06311]
[1756608302387,2.77274499,4449.0,4448.9,3.4338]
[1756608302887,2.77274499,4449.0,4448.9,3.2078]
[1756608303087,2.77274499,4449.0,4448.9,3.4338]
[1756608304389,2.77274499,4449.0,4448.9,3.2078]
[1756608304784,2.77274499,4449.0,4448.9,3.4338]
[1756608305690,2.29564499,4449.0,4448.9,3.83834]
[1756608306296,2.77274499,4449.0,4448.9,3.4338]
[1756608313093,2.58064499,4449.0,4448.9,3.4338]
[1756608313295,2.29564499,4449.0,4448.9,7.65857]
[1756608313694,2.29564499,4449.0,4448.9,7.4338]
[1756608316103,2.29564499,4449.0,4448.9,12.8048]
[1756608318203,2.29564499,4449.0,4448.9,8.8048]
[1756608319905,2.58544499,4449.0,4448.9,8.8048]
[1756608322609,2.29564499,4449.0,4448.9,8.8048]
[1756608324909,2.58544499,4449.0,4448.9,8.8048]
[1756608330215,2.77894499,4449.0,4448.9,8.8048]
[1756608331619,2.58544499,4449.0,4448.9,8.8048]
[1756608336420,2.29564499,4449.0,4448.9,8.8048]
[1756608336618,0.2898,4450.4,4448.9,8.8048]
[1756608336821,0.4833,4450.1,4450.0,3.2078]
[1756608337120,0.4833,4450.1,4450.0,3.4338]
[1756608337321,4.4833,4450.1,4450.0,3.4338]
[1756608339917,7.107744,4450.1,4450.0,3.4338]
[1756608345021,7.107744,4450.1,4450.0,0.226]
[1756608350325,3.107744,4450.1,4450.0,0.226]
[1756608355222,2.817944,4450.1,4449.7,8.5788]
[1756608355627,2.817944,4450.1,4449.8,0.226]
[1756608355828,0.2886,4450.0,4449.8,0.226]
[1756608356027,0.1946,4449.9,4449.8,0.226]
[1756608356227,0.4832,4449.9,4449.8,0.226]
[1756608361131,3.2078,4451.4,4450.2,0.40442]
[1756608361436,0.4832,4450.8,4450.7,3.2078]
[1756608361643,0.4832,4450.8,4450.7,3.4338]
[1756608363028,0.4832,4450.8,4450.7,3.2078]
[1756608363233,0.4832,4450.8,4450.7,3.4338]
[1756608363735,0.4832,4450.8,4450.7,3.2078]
[1756608363937,0.4832,4450.8,4450.7,3.4338]
[1756608365339,3.107644,4450.8,4450.7,3.4338]
[1756608366637,3.107644,4450.8,4450.7,3.2078]
[1756608366833,3.107644,4450.8,4450.7,3.4338]
[1756608374138,3.107644,4450.8,4450.7,3.2078]
[1756608374347,3.107644,4450.8,4450.7,3.4338]
[1756608375339,3.107644,4450.8,4450.7,3.2078]
[1756608375641,3.107644,4450.8,4450.7,3.4338]
[1756608378540,3.107644,4450.8,4450.7,3.2078]
[1756608378747,3.107644,4450.8,4450.7,3.4338]
[1756608387750,3.107644,4450.8,4450.7,3.2078]